fUST/lending_fUST_20250630
["ID","MTS","AMOUNT","RATE_DAILY","PERIOD"]
[368639531,1751259044932,-1134.47,0.00019587,2]
[368639532,1751259044942,-460.0,0.00019587,2]
[368639533,1751259044952,-460.0,0.00019587,2]
[368639534,1751259044962,-460.0,0.00019587,2]
[368639535,1751259044972,-332.1856276,0.00019587,2]
[368639536,1751259044982,-523.73,0.00019589,2]
[368639537,1751259044991,-1421.16,0.00019589,2]
[368639538,1751259045000,-460.0,0.00019589,2]
[368639539,1751259045010,-460.0,0.00019589,2]
[368639540,1751259045019,-460.0,0.00019589,2]
[368639541,1751259045028,-474.59,0.00019589,2]
[368639542,1751259045037,-460.0,0.00019589,2]
[368639543,1751259045047,-460.0,0.00019589,2]
[368639544,1751259045055,-782.71,0.00019589,2]
[368639545,1751259045065,-460.0,0.00019589,2]
[368639546,1751259045074,-504.68,0.00019589,2]
[368639547,1751259045083,-460.0,0.00019589,2]
[368639548,1751259045093,-11814.45,0.00019589,2]
[368639549,1751259045102,-722.46,0.00019589,2]
[368639550,1751259045111,-1050.23,0.00019589,2]
[368639551,1751259045121,-825.19,0.00019589,2]
[368639552,1751259045131,-460.0,0.00019589,2]
[368639553,1751259045140,-460.0,0.0001959,2]
[368639554,1751259045150,-397.39196565,0.0001959,2]
[368639555,1751259045159,-460.0,0.0001959,2]
[368639556,1751259045168,-1591.8,0.0001959,2]
[368639557,1751259045178,-1914.98,0.0001959,2]
[368639558,1751259045187,-1271.67,0.0001959,2]
[368639559,1751259045196,-460.0,0.0001959,2]
[368639560,1751259045206,-1378.81,0.0001959,2]
[368639561,1751259045215,-935.98,0.0001959,2]
[368639562,1751259045224,-4325.5,0.0001959,2]
[368639563,1751259045233,-1164.87,0.0001959,2]
[368639564,1751259045243,-4035.9,0.0001959,2]
[368639565,1751259045252,-460.0,0.0001959,2]
[368639566,1751259045261,-1265.04,0.0001959,2]
[368639567,1751259045270,-591.62,0.00019591,2]
[368639568,1751259045279,-460.0,0.00019591,2]
[368639569,1751259045288,-460.0,0.00019591,2]
[368639570,1751259045297,-491.61,0.00019591,2]
[368639571,1751259045307,-460.0,0.00019591,2]
[368639572,1751259045316,-460.0,0.00019591,2]
[368639573,1751259045326,-460.0,0.00019591,2]
[368639574,1751259045336,-561.17,0.00019595,2]
[368639575,1751259045347,-243.52696279,0.00019606,2]
[368639576,1751259045363,-828.22200964,0.00019623,2]
[368639577,1751259045372,-168.0,0.00019661,2]
[368639578,1751259045381,-858.86622399,0.00019678,2]
[368639579,1751259045391,-256.32031953,0.00019699,2]
[368639580,1751259045402,-890.64427428,0.00019733,2]
[368639581,1751259045412,-500.0,0.00019764,2]
[368639582,1751259045421,-1002.45500882,0.00019764,2]
[368639583,1751259045431,-501.36610691,0.00019764,2]
[368639584,1751259045441,-985.62165416,0.00019764,2]
[368639585,1751259045450,-500.0,0.00019764,2]
[368639586,1751259045459,-1000.0,0.00019764,2]
[368639587,1751259045468,-1000.0,0.00019764,2]
[368639588,1751259045478,-923.59811243,0.00019788,2]
[368639589,1751259045490,-1070.9676424,0.00019824,2]
[368639590,1751259045500,-168.0,0.00019833,2]
[368639591,1751259045510,-957.77124259,0.00019843,2]
[368639592,1751259045519,-460.0,0.0001986,2]
[368639593,1751259045529,-1363.85,0.0001986,2]
[368639594,1751259045539,-1512.1,0.0001986,2]
[368639595,1751259045548,-2131.26,0.00019861,2]
[368639596,1751259045560,-2014.01,0.00019861,2]
[368639597,1751259045569,-460.0,0.00019861,2]
[368639598,1751259045579,-460.0,0.00019861,2]
[368639599,1751259045588,-1797.48,0.00019861,2]
[368639600,1751259045598,-2389.95,0.00019861,2]
[368639601,1751259045607,-2078.6,0.00019861,2]
[368639602,1751259045617,-460.0,0.00019861,2]
[368639603,1751259045626,-1134.47,0.00019861,2]
[368639604,1751259045635,-460.0,0.00019861,2]
[368639605,1751259045645,-460.0,0.00019861,2]
[368639606,1751259045655,-460.0,0.00019861,2]
[368639607,1751259045663,-523.73,0.00019863,2]
[368639608,1751259045673,-1421.16,0.00019863,2]
[368639609,1751259045682,-460.0,0.00019863,2]
[368639610,1751259045692,-460.0,0.00019863,2]
[368639611,1751259045701,-460.0,0.00019863,2]
[368639612,1751259045710,-474.59,0.00019863,2]
[368639613,1751259045720,-460.0,0.00019863,2]
[368639614,1751259045730,-460.0,0.00019863,2]
[368639615,1751259045739,-782.71,0.00019863,2]
[368639616,1751259045748,-460.0,0.00019863,2]
[368639617,1751259045758,-504.68,0.00019863,2]
[368639618,1751259045767,-460.0,0.00019863,2]
[368639619,1751259045776,-11814.45,0.00019863,2]
[368639620,1751259045785,-722.46,0.00019863,2]
[368639621,1751259045795,-1050.23,0.00019863,2]
[368639622,1751259045804,-825.19,0.00019863,2]
[368639623,1751259045814,-460.0,0.00019863,2]
[368639624,1751259045824,-460.0,0.00019864,2]
[368639625,1751259045833,-460.0,0.00019864,2]
[368639626,1751259045842,-1591.8,0.00019864,2]
[368639627,1751259045852,-1914.98,0.00019864,2]
[368639628,1751259045862,-1271.67,0.00019864,2]
[368639629,1751259045871,-460.0,0.00019864,2]
[368639630,1751259045881,-1378.81,0.00019864,2]
[368639631,1751259045891,-935.98,0.00019864,2]
[368639632,1751259045900,-4325.5,0.00019864,2]
[368639633,1751259045909,-1164.87,0.00019864,2]
[368639634,1751259045919,-4035.9,0.00019864,2]
[368639635,1751259045928,-460.0,0.00019864,2]
[368639636,1751259045938,-1265.04,0.00019864,2]
[368639637,1751259045947,-460.0,0.00019865,2]
[368639638,1751259045956,-460.0,0.00019865,2]
[368639639,1751259045967,-491.61,0.00019865,2]
[368639640,1751259045976,-460.0,0.00019865,2]
[368639641,1751259045985,-460.0,0.00019865,2]
[368639642,1751259045995,-460.0,0.00019865,2]
[368639643,1751259046004,-561.17,0.00019869,2]
[368639644,1751259046014,-5000.0,0.00019896,2]
[368639645,1751259046023,-901.59875828,0.000199,2]
[368639646,1751259046033,-3525.43337855,0.000199,2]
[368639647,1751259046042,-1000.0,0.00019908,2]
[368639648,1751259046052,-1000.0,0.00019908,2]
[368639649,1751259046061,-500.62860651,0.00019908,2]
[368639650,1751259046070,-1000.0,0.00019908,2]
[368639651,1751259046079,-247.22408996,0.00019908,2]
[368639652,1751259046089,-1000.84220279,0.00019908,2]
[368639653,1751259046098,-1000.0,0.00019908,2]
[368639655,1751259046107,-1000.0,0.00019908,2]
[368639656,1751259046116,-1000.0,0.00019908,2]
[368639657,1751259046125,-500.36121719,0.00019908,2]
[368639658,1751259046136,-1000.90077759,0.00019908,2]
[368639659,1751259046145,-1000.0,0.00019908,2]
[368639661,1751259046155,-1001.12856268,0.00019908,2]
[368639662,1751259046164,-1000.0,0.00019908,2]
[368639663,1751259046174,-431.69007642,0.00019908,2]
[368639664,1751259046183,-502.06382381,0.00019908,2]
[368639665,1751259046192,-201.29531528,0.00019908,2]
[368639666,1751259046201,-1000.1469035,0.00019908,2]
[368639667,1751259046210,-1000.32182282,0.00019908,2]
[368639668,1751259046219,-1001.22139317,0.00019908,2]
[368639669,1751259046230,-168.0,0.00019949,2]
[368639670,1751259046240,-155.98203396,0.0001995,2]
[368639671,1751259046250,-1680.0,0.00019967,2]
[368639672,1751259046258,-168.0,0.00019995,2]
[368639674,1751259046267,-646.99031349,0.00019999,2]
[368639675,1751259046277,-432.67833288,0.0002,2]
[368639676,1751259046287,-300.0,0.0002,2]
[368639677,1751259046296,-3525.43337847,0.00020038,2]
[368639678,1751259046305,-966.0,0.00020057,2]
[368639679,1751259046315,-2151.0,0.00020057,2]
[368639680,1751259046324,-646.0,0.00020057,2]
[368639681,1751259046333,-168.0,0.00020064,2]
[368639682,1751259046343,-736.6086105,0.00020082,2]
[368639683,1751259046356,-366.3004382,0.00020082,2]
[368639684,1751259046365,-366.3004382,0.00020082,2]
[368639685,1751259046374,-732.6008764,0.00020082,2]
[368639686,1751259046384,-366.3004382,0.00020082,2]
[368639687,1751259046394,-366.3004382,0.00020082,2]
[368639688,1751259046403,-366.3004382,0.00020082,2]
[368639689,1751259046412,-366.3004382,0.00020082,2]
[368639690,1751259046421,-366.3004382,0.00020082,2]
[368639691,1751259046431,-366.3004382,0.00020082,2]
[368639692,1751259046440,-366.3004382,0.00020082,2]
[368639693,1751259046450,-366.3004382,0.00020082,2]
[368639694,1751259046459,-337.9628433,0.00020082,2]
[368639695,1751259046468,-151.0,0.00020118,2]
[368639696,1751259046478,-202.442738,0.00020118,2]
[368639697,1751259046487,-219.027304,0.00020118,2]
[368639698,1751259046497,-460.0,0.00020134,2]
[368639699,1751259046506,-1363.85,0.00020134,2]
[368639700,1751259046515,-1512.1,0.00020134,2]
[368639701,1751259046524,-2131.26,0.00020135,2]
[368639702,1751259046533,-2014.01,0.00020135,2]
[368639703,1751259046543,-460.0,0.00020135,2]
[368639704,1751259046552,-460.0,0.00020135,2]
[368639705,1751259046562,-1797.48,0.00020135,2]
[368639706,1751259046572,-2389.95,0.00020135,2]
[368639707,1751259046582,-2078.6,0.00020135,2]
[368639708,1751259046591,-460.0,0.00020135,2]
[368639709,1751259046600,-1134.47,0.00020135,2]
[368639710,1751259046610,-460.0,0.00020135,2]
[368639711,1751259046619,-460.0,0.00020135,2]
[368639712,1751259046628,-460.0,0.00020135,2]
[368639713,1751259046638,-523.73,0.00020137,2]
[368639714,1751259046647,-1421.16,0.00020137,2]
[368639715,1751259046656,-460.0,0.00020137,2]
[368639716,1751259046665,-460.0,0.00020137,2]
[368639717,1751259046675,-460.0,0.00020137,2]
[368639718,1751259046684,-474.59,0.00020137,2]
[368639719,1751259046693,-460.0,0.00020137,2]
[368639720,1751259046702,-460.0,0.00020137,2]
[368639721,1751259046711,-782.71,0.00020137,2]
[368639722,1751259046720,-460.0,0.00020137,2]
[368639723,1751259046730,-504.68,0.00020137,2]
[368639724,1751259046738,-460.0,0.00020137,2]
[368639725,1751259046747,-11814.45,0.00020137,2]
[368639726,1751259046756,-722.46,0.00020137,2]
[368639727,1751259046766,-1050.23,0.00020137,2]
[368639728,1751259046776,-825.19,0.00020137,2]
[368639729,1751259046785,-460.0,0.00020137,2]
[368639730,1751259046794,-460.0,0.00020138,2]
[368639731,1751259046803,-1591.8,0.00020138,2]
[368639732,1751259046812,-1914.98,0.00020138,2]
[368639733,1751259046821,-1271.67,0.00020138,2]
[368639735,1751259046831,-460.0,0.00020138,2]
[368639737,1751259046840,-1378.81,0.00020138,2]
[368639739,1751259046849,-935.98,0.00020138,2]
[368639740,1751259046858,-4325.5,0.00020138,2]
[368639742,1751259046868,-1164.87,0.00020138,2]
[368639744,1751259046877,-4035.9,0.00020138,2]
[368639747,1751259046886,-460.0,0.00020138,2]
[368639748,1751259046896,-1265.04,0.00020138,2]
[368639751,1751259046905,-460.0,0.00020139,2]
[368639753,1751259046915,-460.0,0.00020139,2]
[368639754,1751259046923,-491.61,0.00020139,2]
[368639757,1751259046933,-460.0,0.00020139,2]
[368639759,1751259046942,-460.0,0.00020139,2]
[368639761,1751259046952,-460.0,0.00020139,2]
[368639763,1751259046962,-561.17,0.00020143,2]
[368639765,1751259046971,-2674.82394565,0.00020145,2]
[368639767,1751259046980,-3525.43337847,0.00020176,2]
[368639769,1751259046989,-175.29106,0.00020187,2]
[368639771,1751259046998,-151.0,0.000202,3]
[368639773,1751259047008,-1500.0,0.00020312,2]
[368639775,1751259047017,-1500.0,0.00020312,2]
[368639777,1751259047026,-3525.43337847,0.00020314,3]
[368639779,1751259047036,-256.32031953,0.00020347,2]
[368639781,1751259047045,-154.6867203,0.00020356,2]
[368639783,1751259047053,-575.4102369,0.00020356,2]
[368639785,1751259047062,-154.5721532,0.00020356,2]
[368639787,1751259047071,-237.7604588,0.00020356,2]
[368639789,1751259047080,-180.0153587,0.00020356,2]
[368639791,1751259047090,-177.5677436,0.00020356,2]
[368639793,1751259047099,-153.0,0.00020356,2]
[368639795,1751259047109,-575.4102369,0.00020356,2]
[368639797,1751259047118,-159.319357,0.00020356,2]
[368639799,1751259047127,-318.610712,0.00020356,2]
[368639801,1751259047138,-177.5677436,0.00020356,2]
[368639802,1751259047147,-1150.7225375,0.00020356,2]
[368639804,1751259047156,-153.0,0.00020356,2]
[368639806,1751259047165,-575.4102369,0.00020356,2]
[368639808,1751259047174,-159.319357,0.00020356,2]
[368639810,1751259047183,-177.5677436,0.00020356,2]
[368639812,1751259047192,-159.319357,0.00020356,2]
[368639814,1751259047201,-177.5677436,0.00020356,2]
[368639817,1751259047211,-575.4102369,0.00020356,2]
[368639819,1751259047221,-153.0,0.00020356,2]
[368639820,1751259047230,-177.5677436,0.00020356,2]
[368639822,1751259047239,-575.4102369,0.00020356,2]
[368639825,1751259047248,-159.319357,0.00020356,2]
[368639826,1751259047257,-177.5677436,0.00020356,2]
[368639828,1751259047267,-159.319357,0.00020356,2]
[368639830,1751259047277,-575.4102369,0.00020356,2]
[368639832,1751259047286,-159.319357,0.00020356,2]
[368639834,1751259047296,-153.0,0.00020356,2]
[368639836,1751259047305,-177.5677436,0.00020356,2]
[368639838,1751259047315,-575.4102369,0.00020356,2]
[368639840,1751259047324,-159.319357,0.00020356,2]
[368639842,1751259047333,-177.5677436,0.00020356,2]
[368639844,1751259047343,-575.4102369,0.00020356,2]
[368639846,1751259047354,-177.5677436,0.00020356,2]
[368639848,1751259047363,-575.4102369,0.00020356,2]
[368639850,1751259047372,-159.319357,0.00020356,2]
[368639852,1751259047381,-177.5677436,0.00020356,2]
[368639854,1751259047391,-575.4102369,0.00020356,2]
[368639856,1751259047402,-159.319357,0.00020356,2]
[368639858,1751259047411,-177.5677436,0.00020356,2]
[368639860,1751259047420,-159.319357,0.00020356,2]
[368639862,1751259047429,-575.4102369,0.00020356,2]
[368639864,1751259047438,-159.319357,0.00020356,2]
[368639866,1751259047447,-575.4102369,0.00020356,2]
[368639868,1751259047457,-177.5677436,0.00020356,2]
[368639870,1751259047467,-177.3882618,0.00020356,2]
[368639872,1751259047477,-159.319357,0.00020356,2]
[368639874,1751259047486,-575.4102369,0.00020356,2]
[368639876,1751259047496,-575.4102369,0.00020356,2]
[368639878,1751259047505,-159.319357,0.00020356,2]
[368639880,1751259047514,-162.5600242,0.00020356,2]
[368639882,1751259047523,-575.4102369,0.00020356,2]
[368639884,1751259047532,-575.4102369,0.00020356,2]
[368639885,1751259047541,-575.4102369,0.00020356,2]
[368639887,1751259047551,-507.9082879,0.00020356,2]
[368639889,1751259047560,-151.0,0.000204,3]
[368639891,1751259047570,-906.0,0.00020401,2]
[368639893,1751259047579,-448.09549349,0.00020408,2]
[368639895,1751259047588,-1363.85,0.00020408,2]
[368639897,1751259047598,-1512.1,0.00020408,2]
[368639898,1751259047607,-2131.26,0.00020409,2]
[368639900,1751259047617,-2014.01,0.00020409,2]
[368639902,1751259047626,-460.0,0.00020409,2]
[368639904,1751259047635,-165.00653123,0.00020409,2]
[368639906,1751259047645,-1797.48,0.00020409,2]
[368639908,1751259047654,-2389.95,0.00020409,2]
[368639910,1751259047664,-2078.6,0.00020409,2]
[368639912,1751259047673,-460.0,0.00020409,2]
[368639914,1751259047682,-1134.47,0.00020409,2]
[368639916,1751259047690,-460.0,0.00020409,2]
[368639918,1751259047700,-460.0,0.00020409,2]
[368639920,1751259047710,-460.0,0.00020409,2]
[368639922,1751259047719,-523.73,0.00020411,2]
[368639924,1751259047728,-1421.16,0.00020411,2]
[368639926,1751259047738,-460.0,0.00020411,2]
[368639928,1751259047747,-460.0,0.00020411,2]
[368639930,1751259047756,-460.0,0.00020411,2]
[368639932,1751259047766,-474.59,0.00020411,2]
[368639934,1751259047775,-460.0,0.00020411,2]
[368639936,1751259047785,-460.0,0.00020411,2]
[368639938,1751259047794,-782.71,0.00020411,2]
[368639940,1751259047804,-460.0,0.00020411,2]
[368639942,1751259047813,-504.68,0.00020411,2]
[368639944,1751259047823,-460.0,0.00020411,2]
[368639946,1751259047833,-11814.45,0.00020411,2]
[368639948,1751259047842,-722.46,0.00020411,2]
[368639950,1751259047851,-1050.23,0.00020411,2]
[368639952,1751259047862,-825.19,0.00020411,2]
[368639954,1751259047871,-460.0,0.00020411,2]
[368639956,1751259047880,-460.0,0.00020412,2]
[368639958,1751259047889,-1591.8,0.00020412,2]
[368639960,1751259047898,-1914.98,0.00020412,2]
[368639962,1751259047907,-460.0,0.00020412,2]
[368639963,1751259047917,-1271.67,0.00020412,2]
[368639965,1751259047928,-1378.81,0.00020412,2]
[368639967,1751259047939,-935.98,0.00020412,2]
[368639969,1751259047948,-4325.5,0.00020412,2]
[368639971,1751259047957,-1164.87,0.00020412,2]
[368639973,1751259047967,-4035.9,0.00020412,2]
[368639975,1751259047976,-460.0,0.00020412,2]
[368639977,1751259047986,-1265.04,0.00020412,2]
[368639979,1751259047995,-460.0,0.00020413,2]
[368639981,1751259048004,-460.0,0.00020413,2]
[368639983,1751259048014,-491.61,0.00020413,2]
[368639985,1751259048023,-460.0,0.00020413,2]
[368639987,1751259048032,-460.0,0.00020413,2]
[368639989,1751259048042,-460.0,0.00020413,2]
[368640005,1751259048179,-561.17,0.00020417,2]
[368640007,1751259048189,-3525.43337847,0.00020452,3]
[368640009,1751259048198,-151.0,0.00020456,4]
[368640011,1751259048208,-1500.0,0.00020456,2]
[368640013,1751259048217,-1501.04793815,0.00020456,2]
[368640015,1751259048227,-500.0,0.00020456,2]
[368640017,1751259048236,-501.08720691,0.00020456,2]
[368640018,1751259048245,-507.38068152,0.00020456,2]
[368640020,1751259048256,-1500.0,0.00020456,2]
[368640022,1751259048265,-1500.0,0.00020456,2]
[368640024,1751259048274,-2674.82394565,0.0002048,2]
[368640026,1751259048284,-168.0,0.00020536,2]
[368640028,1751259048293,-500.0,0.00020547,14]
[368640030,1751259048303,-3525.43337847,0.0002059,3]
[368640032,1751259048312,-213.84631524,0.0002059,3]
[368640034,1751259048321,-847.41730813,0.0002059,3]
[368640036,1751259048330,-12569.13231816,0.0002059,3]
[368640038,1751259048339,-5067.22,0.000206,2]
[368640040,1751259048349,-837.106,0.00020624,2]
[368640042,1751259048360,-151.0,0.00020648,4]
[368640044,1751259048370,-1363.85,0.00020682,2]
[368640046,1751259048379,-1512.1,0.00020682,2]
[368640048,1751259048388,-2131.26,0.00020683,2]
[368640050,1751259048398,-2014.01,0.00020683,2]
[368640052,1751259048407,-460.0,0.00020683,2]
[368640054,1751259048417,-1797.48,0.00020683,2]
[368640056,1751259048427,-2389.95,0.00020683,2]
[368640058,1751259048437,-2078.6,0.00020683,2]
[368640060,1751259048447,-460.0,0.00020683,2]
[368640062,1751259048456,-1134.47,0.00020683,2]
[368640063,1751259048466,-460.0,0.00020683,2]
[368640066,1751259048475,-460.0,0.00020683,2]
[368640067,1751259048485,-460.0,0.00020683,2]
[368640070,1751259048495,-523.73,0.00020685,2]
[368640071,1751259048505,-1421.16,0.00020685,2]
[368640073,1751259048514,-460.0,0.00020685,2]
[368640075,1751259048523,-460.0,0.00020685,2]
[368640077,1751259048532,-460.0,0.00020685,2]
[368640079,1751259048542,-474.59,0.00020685,2]
[368640081,1751259048551,-460.0,0.00020685,2]
[368640083,1751259048561,-460.0,0.00020685,2]
[368640085,1751259048570,-782.71,0.00020685,2]
[368640087,1751259048579,-460.0,0.00020685,2]
[368640089,1751259048588,-504.68,0.00020685,2]
[368640091,1751259048598,-460.0,0.00020685,2]
[368640093,1751259048607,-11814.45,0.00020685,2]
[368640095,1751259048617,-722.46,0.00020685,2]
[368640097,1751259048627,-1050.23,0.00020685,2]
[368640099,1751259048636,-825.19,0.00020685,2]
[368640101,1751259048646,-460.0,0.00020685,2]
[368640103,1751259048655,-460.0,0.00020686,2]
[368640105,1751259048664,-1591.8,0.00020686,2]
[368640107,1751259048673,-1914.98,0.00020686,2]
[368640109,1751259048683,-460.0,0.00020686,2]
[368640111,1751259048692,-1271.67,0.00020686,2]
[368640113,1751259048702,-1378.81,0.00020686,2]
[368640115,1751259048711,-935.98,0.00020686,2]
[368640117,1751259048721,-4325.5,0.00020686,2]
[368640119,1751259048730,-1164.87,0.00020686,2]
[368640121,1751259048740,-4035.9,0.00020686,2]
[368640123,1751259048750,-460.0,0.00020686,2]
[368640125,1751259048759,-1265.04,0.00020686,2]
[368640127,1751259048768,-460.0,0.00020687,2]
[368640129,1751259048778,-460.0,0.00020687,2]
[368640131,1751259048786,-491.61,0.00020687,2]
[368640133,1751259048796,-460.0,0.00020687,2]
[368640135,1751259048805,-460.0,0.00020687,2]
[368640136,1751259048815,-460.0,0.00020687,2]
[368640138,1751259048824,-155.278732,0.00020689,2]
[368640140,1751259048834,-561.17,0.00020691,2]
[368640142,1751259048843,-215.0738,0.00020717,2]
[368640144,1751259048852,-3525.43337847,0.00020728,3]
[368640146,1751259048862,-2674.82394565,0.00020759,2]
[368640148,1751259048871,-311.546689,0.00020824,4]
[368640150,1751259048880,-151.0,0.00020841,4]
[368640152,1751259048890,-1515.98801501,0.0002086,2]
[368640154,1751259048900,-3525.43337847,0.00020866,4]
[368640156,1751259048910,-155.98203396,0.00020867,2]
[368640158,1751259048919,-4381.95532619,0.000209,2]
[368640160,1751259048928,-1363.85,0.00020956,2]
[368640162,1751259048937,-1512.1,0.00020956,2]
[368640164,1751259048947,-2131.26,0.00020957,2]
[368640165,1751259048955,-2014.01,0.00020957,2]
[368640167,1751259048966,-460.0,0.00020957,2]
[368640169,1751259048975,-1797.48,0.00020957,2]
[368640171,1751259048986,-2389.95,0.00020957,2]
[368640173,1751259048995,-2078.6,0.00020957,2]
[368640175,1751259049004,-460.0,0.00020957,2]
[368640177,1751259049013,-1134.47,0.00020957,2]
[368640179,1751259049023,-343.83260164,0.00020957,2]
[368640181,1751259049033,-460.0,0.00020957,2]
[368640183,1751259049042,-460.0,0.00020957,2]
[368640185,1751259049051,-523.73,0.00020959,2]
[368640187,1751259049060,-1421.16,0.00020959,2]
[368640189,1751259049070,-460.0,0.00020959,2]
[368640191,1751259049079,-460.0,0.00020959,2]
[368640193,1751259049089,-460.0,0.00020959,2]
[368640195,1751259049098,-474.59,0.00020959,2]
[368640197,1751259049108,-460.0,0.00020959,2]
[368640199,1751259049117,-460.0,0.00020959,2]
[368640201,1751259049126,-782.71,0.00020959,2]
[368640203,1751259049136,-460.0,0.00020959,2]
[368640205,1751259049146,-504.68,0.00020959,2]
[368640207,1751259049155,-347.06217225,0.00020959,2]
[368640209,1751259049163,-11814.45,0.00020959,2]
[368640211,1751259049173,-722.46,0.00020959,2]
[368640212,1751259049182,-1050.23,0.00020959,2]
[368640214,1751259049191,-825.19,0.00020959,2]
[368640216,1751259049201,-460.0,0.00020959,2]
[368640218,1751259049210,-1591.8,0.0002096,2]
[368640220,1751259049219,-1914.98,0.0002096,2]
[368640223,1751259049229,-460.0,0.0002096,2]
[368640225,1751259049239,-1271.67,0.0002096,2]
[368640226,1751259049249,-1378.81,0.0002096,2]
[368640228,1751259049258,-935.98,0.0002096,2]
[368640230,1751259049268,-4325.5,0.0002096,2]
[368640232,1751259049277,-1164.87,0.0002096,2]
[368640234,1751259049286,-4035.9,0.0002096,2]
[368640236,1751259049296,-460.0,0.0002096,2]
[368640238,1751259049305,-1265.04,0.0002096,2]
[368640240,1751259049314,-460.0,0.00020961,2]
[368640242,1751259049324,-460.0,0.00020961,2]
[368640244,1751259049334,-491.61,0.00020961,2]
[368640246,1751259049343,-460.0,0.00020961,2]
[368640248,1751259049357,-460.0,0.00020961,2]
[368640250,1751259049366,-460.0,0.00020961,2]
[368640252,1751259049375,-561.17,0.00020965,2]
[368640254,1751259049385,-603.36583331,0.00020976,2]
[368640256,1751259049395,-428.6822406,0.00020976,2]
[368640258,1751259049404,-151.44482416,0.00020976,2]
[368640260,1751259049414,-213.84631524,0.0002099,10]
[368640262,1751259049423,-847.41730813,0.0002099,10]
[368640264,1751259049433,-12569.13231816,0.0002099,10]
[368640266,1751259049443,-256.32031953,0.00020995,2]
[368640268,1751259049452,-293394.42435255,0.00020999,2]
[368640301,1751259049755,-460.0,0.00018216,2]
[368640303,1751259049765,-460.0,0.00018219,2]
[368640305,1751259049775,-460.0,0.00018493,2]
[368640307,1751259049784,-460.0,0.00019315,2]
[368640309,1751259049794,-460.0,0.00019589,2]
[368640311,1751259049803,-460.0,0.00019863,2]
[368640313,1751259049812,-460.0,0.00020137,2]
[368640315,1751259049822,-460.0,0.00020411,2]
[368640317,1751259049831,-160.0,0.0002059,3]
[368640319,1751259049840,-460.0,0.00020685,2]
[368640321,1751259049849,-479.37670197,0.00020959,2]
[368640323,1751259049859,-65245.59814858,0.00020999,2]
[368640325,1751259049875,-4085.17632308,0.00020999,2]
[368640328,1751259049886,-2362.41,0.00020999,2]
[368640332,1751259049917,24900.0,0.00017637,2]
[368640334,1751259049931,-1456.33233316,0.00020999,2]
[368640336,1751259049943,-283324.2700988,0.00020999,2]
[368640369,1751259604472,-154.85777253,0.00018116,2]
[368640370,1751259604496,-67.07516978,0.00018116,2]
[368640371,1751259606305,-299.61088332,0.00018116,2]
[368640372,1751259607985,-133.3139469,0.00018116,2]
[368640373,1751259608006,-33.6860531,0.00018116,2]
[368640374,1751259610220,-151.6650304,0.00018116,2]
[368640375,1751259617118,-222.01,0.00018116,2]
[368640376,1751259618931,-92.6389165,0.00018116,2]
[368640377,1751259618953,-115.0061139,0.00018116,2]
[368640378,1751259623478,-191.06384989,0.00018116,2]
[368640379,1751259625274,-167.48242776,0.00018116,2]
[368640380,1751259627068,-26.44760845,0.00018116,2]
[368640381,1751259627090,-182.48854166,0.00018116,2]
[368640382,1751259630075,-180.18769723,0.00018116,2]
[368640383,1751259631668,-107.34606132,0.00018116,2]
[368640385,1751259804693,167.500347,0.00013699,2]
[368640387,1751260133920,24900.0,0.00017215,2]
[368640390,1751260231853,-154.85777252,0.00018116,2]